Cogmind - Beta 16.1 @@@ ROGUE MODE // 2026.02.11 @ 11:18:42 Player: Lintence Result: Self-destructed Performance ------------- Evolutions (2) 1000 Regions Visited (3) 600 Robots Destroyed (49) 245 Value Destroyed (1223) 1223 Prototype IDs (2) 40 Alien Tech Used (0) 0 Bonus (0) 0 TOTAL SCORE: 3108 Bonus ------- None Cogmind --------- Core Integrity 234/550 Matter 229/300 Energy 178/265 System Corruption 0% Temperature Cool (9) Movement Flying (117) Ox1 Location -8/Materials Parts ------- > --- POWER (1) -------- Improved Ion Engine > --- PROPULSION (4) --- Flight Unit Flight Unit > --- UTILITY (4) ------ Advanced Visual Processing Unit Improved Sensor Array Transport Network Coupler > --- WEAPON (2) ------- Improved EM Shotgun > --- INVENTORY (5) ---- Improved Ion Engine Hacking Suite Improved Assault Rifle Grenade Launcher Peak State ------------ > --- POWER ------------ Improved Ion Engine > --- PROPULSION ------- Aluminum Leg Aluminum Leg Improved Aluminum Leg > --- UTILITY ---------- Medium Storage Unit Structural Scanner Advanced Visual Processing Unit Transport Network Coupler > --- WEAPON ----------- Improved Assault Rifle Improved Assault Rifle > --- INVENTORY -------- Ion Engine Improved Ion Engine Flight Unit Flight Unit Flight Unit Hacking Suite Improved Assault Rifle Improved Assault Rifle Grenade Launcher [Rating: 19] Favorites ----------- Power Improved Ion Engine Engine Improved Ion Engine Power Core Light Nuclear Core Propulsion Aluminum Leg Treads Light Treads Leg Aluminum Leg Flight Unit Flight Unit Utility Structural Scanner Device Structural Scanner Storage Small Storage Unit Processor Transport Network Coupler Weapon Improved Assault Rifle Energy Gun Small Laser Ballistic Gun Improved Assault Rifle Ballistic Cannon Light Cannon Launcher Grenade Launcher Build | -11 -10 -9 -8 ------- Run | Yrd Mat Mat Mat Slots Evolved 4 | . . 2 2 Power . | . . . . Propulsion 2 | . . . 2 Utility 2 | . . 2 . Weapon . | . . . . Parts Attached 48 | 6 9 20 13 Power 5 | 1 1 2 1 Engine 4 | 1 . 2 1 Core 1 | . 1 . . Reactor . | . . . . Propulsion 14 | 2 2 4 6 Treads 1 | . . . 1 Leg 10 | 2 2 4 2 Wheel . | . . . . Hover . | . . . . Flight 3 | . . . 3 Utility 9 | 1 2 5 1 Device 4 | . 2 1 1 Storage 2 | 1 . 1 . Processor 3 | . . 3 . Hackware . | . . . . Protection . | . . . . Artifact . | . . . . Weapon 20 | 2 4 9 5 Energy Gun 2 | 1 . . 1 Energy Cannon . | . . . . Ballistic Gun 13 | 1 4 4 4 Ballistic Cannon 3 | . . 3 . Launcher 2 | . . 2 . Special Weapon . | . . . . Impact Weapon . | . . . . Slashing Weapon . | . . . . Piercing Weapon . | . . . . Special Melee Weapon . | . . . . Unidentified Prototypes 2 | . . 1 1 Parts Lost 10 | . . 1 9 Power 1 | . . . 1 Propulsion 6 | . . 1 5 Utility 1 | . . . 1 Weapon 2 | . . . 2 Highest Loss Streak 6 | . . 1 6 To Critical Strikes . | . . . . Average Backups 8 | 1 7 8 8 Power 2 | . 1 2 2 Propulsion 2 | . 1 2 2 Utility 1 | . 1 . 1 Weapon 2 | . 1 2 2 Tool/Special . | . . . . Unused Backups 5 | . 2 2 1 Power 2 | . . 2 . Propulsion . | . . . . Utility 2 | . 1 . 1 Weapon 1 | . 1 . . Tool/Special . | . . . . Average Slot Usage (%) 94 | . 93 99 76 Engine 5 | . 1 7 7 Core 5 | . 12 3 . Leg 22 | . 28 21 14 Device 9 | . 7 11 6 Storage 11 | . 14 11 8 Processor 16 | . . 21 18 Energy Gun 1 | . 5 . . Ballistic Gun 17 | . 22 16 17 Ballistic Cannon 3 | . . 4 . Peak Build Rating 19 | 6 12 18 19 Average Rating 14 | 4 10 15 16 On Entrance 8 | . 6 12 17 Avg Prop Armor Cover (%) 7 | . . . 7 Naked Turns . | . . . . Heaviest Build 24 | 13 17 24 24 Greatest Support 33 | 20 20 23 33 Greatest Overweight (x) 5 | . . 1 5 Average Overweight (x) . | . . . . Largest Inventory Capacity 10 | 8 8 10 10 Average Capacity 8 | 7 8 9 9 Most Carried 10 | 2 8 10 10 Average Carried 8 | 1 7 8 8 Final Capacity 10 | 8 8 10 5 Final Carried 10 | 2 8 10 4 Class Distribution -------------------- 67% | Scavenger-Mutant 32% | Mutant Dominant Class ---------------- Mutant | -10/Materials Scavenger-Mutant | -9/Materials Scavenger-Mutant | -8/Materials Resources | -11 -10 -9 -8 ----------- Run | Yrd Mat Mat Mat Matter Collected 1479 | 200 249 644 386 Remotely . | . . . . Salvage Created 1417 | . 349 646 422 Parts 103 | . 30 55 18 Haulers Intercepted 4 | . 1 2 1 Recyclers Shooed . | . . . . Parts Field Recycled . | . . . . Retrieved Matter . | . . . . Parts Self-Destructed . | . . . . Prevented . | . . . . Parts Restored . | . . . . Kills | -11 -10 -9 -8 ------- Run | Yrd Mat Mat Mat Combat Hostiles Destroyed 40 | . 10 23 7 Guns 27 | . 10 10 7 Cannons 3 | . . 3 . AOE 10 | . . 10 . Classes Destroyed 8 | . 5 2 1 Builder 2 | . 2 . . Hauler 4 | . 1 2 1 Mechanic 2 | . 1 1 . Operator 1 | . . 1 . Swarmer 16 | . 6 10 . Grunt 15 | . 4 7 4 Sentry 8 | . . 6 2 Hunter 1 | . . . 1 Best Kill Streak 6 | . 3 6 3 Combat Bots Only 6 | . 3 6 3 Max Kills in Single Turn 4 | . 1 4 1 Gunslinging . | . . . . Exploded 4 | . . 4 . Melee . | . . . . Uniques/NPCs Destroyed . | . . . . Combat | -11 -10 -9 -8 -------- Run | Yrd Mat Mat Mat Hostile Shots Fired 255 | . 36 93 126 Missed 71 | . 10 29 32 Hits 184 | . 26 64 94 Projectile 184 | . 26 64 94 Critical Strikes 2 | . 1 . 1 Damage Taken 2429 | . 245 843 1341 Core 473 | . 66 91 316 Absorbed by Shields . | . . . . Core Remaining (%) 83 | 100 73 77 . Volleys Fired 124 | . 33 53 38 Largest 2 | . 2 2 2 Hottest 60 | . 60 60 46 Shots Fired 236 | . 64 99 73 Gun 200 | . 64 63 73 Cannon 28 | . . 28 . Launcher 8 | . . 8 . Special . | . . . . Kinetic 216 | . 52 91 73 Thermal 12 | . 12 . . Explosive 8 | . . 8 . Electromagnetic . | . . . . Robot Hit Streak 20 | . 6 11 20 Robot Miss Streak 5 | . 5 5 2 Penetration Max . | . . . . Secondary Targets 1 | . 1 . . Max Gunslinging Chain 1 | . 1 . . Shots Hit Robots 167 | . 42 66 59 Core Hits 88 | . 22 45 21 Critical Kills 1 | . . . 1 Critical Parts Destroyed 2 | . . 1 1 Critical Strikes 5 | . . 3 2 Destroy 3 | . . 1 2 Blast 2 | . . 2 . Melee Attacks . | . . . . Impact . | . . . . Slashing . | . . . . Piercing . | . . . . Sneak Attacks . | . . . . Combat Hostiles . | . . . . Follow-up Attacks . | . . . . Damage Inflicted 2989 | . 572 1546 871 Guns 2100 | . 572 657 871 Cannons 309 | . . 309 . Explosions 574 | . . 574 . Melee . | . . . . Ramming 6 | . . 6 . Kinetic 2308 | . 471 966 871 Thermal 101 | . 101 . . Explosive 574 | . . 574 . Electromagnetic . | . . . . Impact . | . . . . Slashing . | . . . . Piercing . | . . . . Highest Corruption . | . . . . Average Corruption . | . . . . Corruption Purged . | . . . . Corruption Blocked . | . . . . Overload Shots . | . . . . Overflow Damage . | . . . . Projectiles . | . . . . Explosions . | . . . . Melee . | . . . . Knockbacks . | . . . . Impact . | . . . . Kinetic . | . . . . Secondary . | . . . . Self-Inflicted Damage 84 | . . 84 . Shots 3 | . . 3 . Rammed . | . . . . Targets Rammed 4 | . . 4 . Kicked 4 | . . 4 . Crushed . | . . . . Highest Temperature 36 | . 36 8 17 Average Temperature 10 | . 13 4 9 Received Heat Transfer 783 | . 66 258 459 Siege Activations . | . . . . Martial Activations . | . . . . Shielding Activations . | . . . . Robots Disrupted . | . . . . Combat Hostiles . | . . . . Robots Corrupted . | . . . . Combat Hostiles . | . . . . Parts Fried . | . . . . Impact Corruptions . | . . . . Robots Melted . | . . . . Combat Hostiles . | . . . . Parts Melted . | . . . . Heat Transferred 225 | . 225 . . Parts Sabotaged . | . . . . Parts Stolen . | . . . . Parts Stripped . | . . . . Power Chain Reactions . | . . . . Alert | -11 -10 -9 -8 ------- Run | Yrd Mat Mat Mat Maximum Alert Level 1 | . . 1 . Low Security (%) 80 | 100 100 68 100 Level 1 19 | . . 31 . Level 2 . | . . . . Level 3 . | . . . . Level 4 . | . . . . Level 5 . | . . . . High Security . | . . . . Max Security . | . . . . Peak Influence 252 | . 127 252 155 Initial 98 | . . 42 98 Average 111 | . 42 139 112 Influence Increases 1142 | . 263 646 233 Destroy 0b10 Robot/C 800 | . 200 460 140 Destroy 0b10 Robot/NC 45 | . 20 20 5 Destroy Leader 208 | . 42 124 42 Destroy Structure 44 | . 1 42 1 Lose Combat Pursuer 45 | . . . 45 Influence Decreases 1041 | . 162 513 366 Entered New Map 195 | . . 59 136 Time Decay 746 | . 162 444 140 Lost Part 100 | . . 10 90 Squads Dispatched 6 | . 1 4 1 Investigation 1 | . . 1 . Extermination . | . . . . Reinforcement 5 | . 1 3 1 Assault . | . . . . Garrison . | . . . . Intercept . | . . . . Searches Triggered . | . . . . Construction Impeded . | . . . . Haulers Reinforced . | . . . . Active Scanning Responses . | . . . . Cargo Convoy Interrupts . | . . . . Stealth | -11 -10 -9 -8 --------- Run | Yrd Mat Mat Mat Distress Signals 5 | . 1 2 2 Communications Jammed . | . . . . Distress Signals . | . . . . Times Spotted 69 | . 14 38 17 Peak Tracking Total 8 | . 4 8 5 Tactical Retreats 3 | . . . 3 Traps | -11 -10 -9 -8 ------- Run | Yrd Mat Mat Mat Traps Triggered 2 | . . 2 . Indirectly . | . . . . Trap Hack Attempts . | . . . . Triggered . | . . . . Disarmed . | . . . . Reprogrammed . | . . . . Reused . | . . . . Traps Extracted . | . . . . Installed . | . . . . Triggered . | . . . . Machines | -11 -10 -9 -8 ---------- Run | Yrd Mat Mat Mat Machines Disabled . | . . . . Max in Single Turn . | . . . . Machines Repaired . | . . . . Machines Dismantled . | . . . . Machines Sabotaged . | . . . . Overloaded Fab Kills . | . . . . Hacking | -11 -10 -9 -8 --------- Run | Yrd Mat Mat Mat Machines Accessed 2 | . 2 . . Terminals 2 | . 2 . . Fabricators . | . . . . Repair Stations . | . . . . Recycling Units . | . . . . Scanalyzers . | . . . . Garrison Access . | . . . . Total Hacks 2 | . 2 . . Successful 1 | . 1 . . Failed 1 | . 1 . . Catastrophic . | . . . . Database Lockouts . | . . . . Manual 1 | . 1 . . Terminals 2 | . 2 . . Fabricators . | . . . . Repair Stations . | . . . . Recycling Units . | . . . . Scanalyzers . | . . . . Garrison Access . | . . . . Terminal Hacks 1 | . 1 . . Hauler Manifests 1 | . 1 . . Fabricator Hacks . | . . . . Repair Station Hacks . | . . . . Recycling Unit Hacks . | . . . . Scanalyzer . | . . . . Garrison Access Hacks . | . . . . Unauthorized Hacks . | . . . . Terminals . | . . . . Fabricators . | . . . . Repair Stations . | . . . . Recycling Units . | . . . . Scanalyzers . | . . . . Garrison Access . | . . . . Data Cores Recovered . | . . . . Used . | . . . . Hacking Detections 2 | . 2 . . Full Trace Events . | . . . . Feedback Events . | . . . . Feedback Blocked . | . . . . Robot Schematics Acquired . | . . . . Robots Built . | . . . . Authchips . | . . . . Time . | . . . . Total Robot Build Rating . | . . . . Part Schematics Acquired . | . . . . Parts Built . | . . . . Authchips . | . . . . Time . | . . . . Total Part Build Rating . | . . . . Part Studies Acquired . | . . . . Parts Repaired . | . . . . Time . | . . . . Parts Recycled . | . . . . Recycled Matter . | . . . . Retrieved Matter . | . . . . Retrieved Components . | . . . . Parts Scanalyzed . | . . . . Part Schematics Acquired . | . . . . Parts Damaged . | . . . . Bothacking | -11 -10 -9 -8 ------------ Run | Yrd Mat Mat Mat Used RIF Installer . | . . . . Robots Hacked . | . . . . Non-combat . | . . . . Combat . | . . . . Robot Hacks Applied . | . . . . Relay Couplers Released . | . . . . Fabnet Peak Effective % . | . . . . Robots Rewired . | . . . . Allies Hacked . | . . . . Hacks Repelled . | . . . . Allies | -11 -10 -9 -8 -------- Run | Yrd Mat Mat Mat Total Allies . | . . . . Largest Group . | . . . . Highest-Rated Group . | . . . . Highest-Rated Ally . | . . . . Total Orders . | . . . . Ally Attacks . | . . . . Total Damage . | . . . . Kills . | . . . . Allies Corrupted . | . . . . Allies Melted . | . . . . Intel | -11 -10 -9 -8 ------- Run | Yrd Mat Mat Mat Active Infowar (turns) 1772 | . 245 1241 286 Optics 1468 | . . 1182 286 Sensors 4 | . . . 4 Structural 1694 | . 245 1241 208 T.N.C. 1527 | . . 1241 286 Robot Analysis Total . | . . . . Derelict Logs Recovered . | . . . . Drone Launches . | . . . . Drone Recoveries . | . . . . Exploration | -11 -10 -9 -8 ------------- Run | Yrd Mat Mat Mat Turns Passed 2005 | 53 425 1241 286 Spaces Moved 1048 | 38 226 654 130 Core 6 | 4 . . 2 Treads 4 | . . . 4 Legs 987 | 34 226 654 73 Wheels . | . . . . Hover . | . . . . Flight 51 | . . . 51 Fastest Speed 34 | 50 120 120 34 Average Speed 133 | 112 120 144 107 Slowest Speed 300 | 120 120 190 300 Overloaded Moves . | . . . . Propulsion Burnouts . | . . . . Robots Hopped . | . . . . Potential Cave-ins . | . . . . Cave-ins Triggered . | . . . . Exploration Rate (%) 27 | 3 39 55 12 Regions Visited 3 Branch Regions . Pre-discovered Areas . | . . . . Known Exits Taken . | . . . . Unknown Exits Taken 3 | 1 1 1 . Scrap Searched . | . . . . Spaces Dug 8 | . . 8 . Terrain Destroyed 41 | . . 41 . Melee . | . . . . Projectile . | . . . . AOE 41 | . . 41 . Terrain Rammed . | . . . . Walls Destroyed . | . . . . Machines Disabled . | . . . . Actions | -11 -10 -9 -8 --------- Run | Yrd Mat Mat Mat Total 1418 | 45 318 850 205 Wait 119 | . 26 81 12 Move 1045 | 37 225 653 130 Hop . | . . . . Pick Up 28 | 2 13 12 1 Fast Attach 20 | 6 3 7 4 Attach 10 | . . 3 7 Detach 2 | . . 1 1 Swap 28 | . 7 16 5 Drop 38 | . 11 20 7 Fire 124 | . 33 53 38 Melee . | . . . . Ram . | . . . . Kick 4 | . . 4 . Crush . | . . . . Escape Stasis . | . . . . Rewire . | . . . . Trap . | . . . . Miscellaneous . | . . . . Route ------- -11/Scrapyard -10/Materials -9/Materials -8/Materials History --------- Turn | Location | Event 26 | -11/Scrapyard | Discovered new exit (range 15) 54 | -11/Scrapyard | Entered Materials 312 | -10/Materials | Build established: Mutant 450 | -10/Materials | Discovered new exit (range 14) 479 | -10/Materials | Entered another Materials area 479 | -9/Materials | Evolved 2 slots: Utility x2 781 | -9/Materials | Build established: Scavenger-Mutant 1710 | -9/Materials | Discovered new exit (range 5) 1720 | -9/Materials | Entered another Materials area 1720 | -8/Materials | Evolved 2 slots: Propulsion x2 1959 | -8/Materials | Core integrity fell below 50% 1992 | -8/Materials | Lost 6 parts (1p2n1u2w) 2006 | -8/Materials | Self-destructed Last Messages --------------- 01964_ Penetrated by Slug. 01965_ H-55 Commando destroyed. 01965_ K-01 Serf collects debris. 01968_ Acquired 53 matter. 01969_ U-05 Engineer builds a Door. 01970_ K-01 Serf collects debris. 01974_ Acquired Carbon-fiber Leg. 01975_ K-01 Serf collects debris. 01978_ Dropped Carbon-fiber Leg. 01979_ K-01 Serf collects debris. 01980_ Dropped Med. Storage Unit. 01982_ K-01 Serf collects debris. 01993_ W-25 Informer sends out distress signal. 02001_ A-02 Transporter destroyed. 02002_ Acquired Imp. Sensor Array. 02004_ Acquired Prototype Energy Gun. 02004_ Identified Imp. EM Shotgun. 02005_ Dropped Imp. Assault Rifle. 02006_ Dropped Imp. Ion Engine. 02006_ Flight Unit destroyed. Map ----- +----------------------------------------------------+ | | | | | ?????????????????????????????????????????????????? | | ?????????????????????????????????????????????????? | | ?????????????????????????????????????????????????? | | ?????????????????????????????????????????????????? | | ?????????????????????????????????????????????????? | | ?????????????????????????????????????????????????? | | ?????????????????????????????????????????????????? | | ?????????????????????????????????????????????????? | | ?????????????????????????????????????????????????? | | ?????##############??????????????????????????????? | | ###################??????????????????????????????? | | ####### # ##??????????????????????????????? | | # # ===##??????????????????????????????? | | # # ===##??????????????????????????????? | | + + ===##????########??????????????????? | | # # ##????# #??????????????????? | | # # ##????# #??????????????????? | | # ##########???# "" #??????????????????? | | ###+### ##########???# S"" #??????????????????? | | # # T ##???# "" #??????????????????? | | # # """ ##???# !#??????????????????? | | + + """ ##???###g####??????????????????? | | ! # # """ ##????#! g########?????????????? | | # # ##????#@T!!= o ??????? | | # ##########????#*g[########?????????????? | | ####### ##########????## ##????????????????????? | | ####### ##?????????????# #?????????????????????? | | # ################ ##### ????????????????? | | ################ ##### ????????????????? | | # # #?????????? | | #####T# %= + #?????????a | | ! + %%[!! # #?????????? | | #### #####+######+######### # ????????????????? | | ?? #### ## !%[[ # ##### #?????????????????? | | ?????## ## [!* # """ #?????#?????????????????? | | ?????## ## # """ !#???????????????????????? | | ?????## ## " # """ ##??????????????????????? | | ?????## ## " " # #??????????????????????? | | ?????## ## " """ # ##??????????????????????? | | ?????## ## """" # #???????????????????????? | | ?????## ##% " # """ #???????????????????????? | | ?????## #[ ! [ # """ #???????????????????????? | | ??????? ########### """ #???????????????????????? | | ??????? ########### """ #???????????????????????? | | ????# + """ #???????????????????????? | | ?????????########## #???????????????????????? | | ??????????????????########???????????????????????? | | ?????????????????????????????????????????????????? | +----------------------------------------------------+ Best States ------------- Heat Dissipation 42 Energy Generation 14 Energy Capacity 265 Matter Stores 300 Matter Capacity 300 Sight Range 20 Terrain Scan Density 10 Evasion (%) 63 Recoil Reduction 1 Item Schematics ----------------- None Robot Schematics ------------------ None Fabricated ------------ Nothing Repaired ---------- Nothing Studied --------- None Alien Tech Used ----------------- None Achievements -------------- None Challenges ------------ None Game ------ Seed GravmagRocketCompressor Manual? 0 Play Time 00:26:43 Cumulative 51.6 hours Start 2026.02.11 @ 10:53:17 End 2026.02.11 @ 11:18:42 Sessions 1 Manual Loads 0 Difficulty Rogue Special Mode None Game No. 102 Rogue 102 Adventurer 0 Explorer 0 Win Type - Total 1 Types 1/0/0/0/0/0/0/0/0/0 Lore% 16 Gallery% 30 Achievement% 19 Wizard Run 0 Options --------- Layout 1 ASCII 0 Keyboard 0 Movement Mouse Keybinds 0 Fullscreen 2 Font 20/X11 Map View 50x35 Zoom Use 0% Tactical HUD 1 Map Filters NONE Filters NONE Steam 1 RUN: 7a11b842-df01-4dd0-9d85-d5a221439e02